[Event "GCT Superbet Rapid Poland 2025"]
[Site "Warsaw"]
[Date "2025.04.27"]
[Round "6.5"]
[White "Topalov, Veselin"]
[Black "Praggnanandhaa R"]
[Result "1-0"]
[ECO "B12"]
[WhiteElo "2717"]
[BlackElo "2758"]
[Annotator "TA"]
[PlyCount "78"]
[EventDate "2025.??.??"]
[EventType "rapid"]
[TimeControl "1500+10"]

{[%evp 9,78,21,48,35,37,35,35,34,33,26,25,26,37,12,21,0,0,0,0,0,0,0,0,0,0,-14,-8,-14,0,0,0,0,14,-28,31,29,45,29,38,54,89,91,89,81,130,112,154,135,148,155,139,125,141,146,277,285,281,264,275,242,245,230,238,235,396,391,329,179,375,372,756]} 1. e4 {[%emt 0:00:02]} c6 {[%emt 0:00:01]} 2. d4 {[%emt 0:00:03]} d5 {[%emt 0:00:02]} 3. e5 {[%emt 0:00:03]} Bf5 {[%emt 0:00:02]} 4. Nf3 {[%emt 0:00:11]} e6 {[%emt 0:00:01]} 5. Be2 {[%emt 0:00:02]} a5 {[%emt 0:00:04]} 6. a4 {[%emt 0:00:16] B12: Caro-Kann: Advance Variation.} Nd7 {[%emt 0:00:02]} 7. O-O {[%emt 0:00:02]} f6 {[%emt 0:00:02]} 8. Bd3 {[%emt 0:00:16] White is slightly better.} ({RR} 8. Bf4 Ne7 9. exf6 Nxf6 10. Bd3 Ng6 11. Bg3 Bd6 12. Re1 O-O 13. Nbd2 Bxg3 14. hxg3 Ng4 15. Nb3 b6 16. Qe2 Qf6 17. Bxf5 exf5 18. Qe6+ Qxe6 19. Rxe6 Rf6 20. Rae1 Rxe6 21. Rxe6 Rc8 22. Nc1 f4 {Firouzja,A (2760)-Carlsen,M (2830) chess.com INT 2024 1-0 (49)}) ({RR} 8. Re1 fxe5 9. dxe5 Bc5 10. Nd4 Ne7 11. Bh5+ g6 12. Bf3 O-O 13. c3 Qb8 14. Qe2 Bxd4 15. cxd4 c5 16. Bh6 Nc6 17. dxc5 Rf7 18. Nc3 Ndxe5 19. Rad1 Nxf3+ 20. gxf3 b6 21. cxb6 Qxb6 22. Nb5 Qd8 {Xiong,J (2636)-Bardyk,A (2249) chess.com INT 2025 0-1 (35)}) 8... Bxd3 {[%emt 0:00:07]} 9. Qxd3 {[%emt 0:00:19]} fxe5 $146 {[%emt 0:00:17]} ({RR} 9... f5 10. Ng5 Qe7 11. b3 h6 12. Nh3 Qf7 13. c4 Nb6 14. Nc3 Bb4 15. cxd5 Nxd5 16. Nxd5 cxd5 17. Nf4 Ne7 18. Qb5+ Nc6 19. Nd3 O-O 20. Bb2 f4 21. f3 Bd2 22. Kh1 Be3 23. Nc5 Nxd4 24. Qxb7 {Bodnaruk,A (2333)-Pham Le Thao Nguyen (2380) FIDE Online Arena INT 2024 0-1 (43)}) ({RR} 9... f5 10. Ng5 Qe7 11. b3 h6 12. Nh3 Qf7 13. c4 Nb6 14. Nc3 Bb4 15. cxd5 Nxd5 16. Nxd5 cxd5 17. Nf4 Ne7 18. Qb5+ Nc6 19. Nd3 O-O 20. Bb2 f4 21. f3 Bd2 22. Kh1 Be3 23. Nc5 Nxd4 24. Qxb7 {Bodnaruk,A (2333)-Pham Le Thao Nguyen (2380) FIDE Online Arena INT 2024 0-1 (43)}) 10. dxe5 {[%emt 0:00:10]} Qc7 {[%emt 0:01:46]} 11. Qe2 {[%emt 0:02:19]} Ne7 {[%emt 0:02:12]} 12. Nd4 $146 {[%emt 0:03:57]} (12. Re1 Nc5 13. Nd4 Nf5 14. Nxf5 exf5 15. e6 Be7 16. Qh5+ g6 17. Qh6 O-O-O 18. Bf4 {½-½ Bodnaruk,A (2333)-Charochkina,D (2323) RUS-chT Rapid (Women) 2024 (3.1)}) 12... Qxe5 {[%emt 0:00:32]} 13. Qxe5 {[%emt 0:00:21]} Nxe5 {[%emt 0:00:02]} 14. Nxe6 {[%emt 0:00:13]} Kd7 {[%emt 0:00:14][%cal Be8d7,Bd7c8,Bc8c7][%mdl 32] Inhibits Nc7.} 15. Nc5+ {[%emt 0:02:13]} Kc8 {[%emt 0:00:22]} 16. Ne6 {[%emt 0:00:32]} Nf5 {[%emt 0:01:44]} 17. Nxf8 {[%emt 0:00:11]} Rxf8 {[%emt 0:00:05]} 18. Re1 {[%emt 0:01:20]} Ng6 {[%emt 0:02:41]} 19. Ra3 {[%emt 0:01:15]} Nd4 {[%emt 0:00:53]} 20. Rc3 {[%emt 0:01:35]} Kc7 {[%emt 0:01:31]} 21. Bd2 {[%emt 0:00:34]} Rf7 {[%emt 0:02:28]} (21... Rae8 $11 22. Rh3 Rxe1+ (22... Nxc2 23. Rxe8 Rxe8 24. Rxh7 $11) 23. Bxe1 Kb6 (23... Nxc2 24. Bxa5+ b6 25. Rxh7 $11)) 22. Na3 $14 {[%emt 0:01:24]} Nf5 {[%emt 0:05:05]} 23. Rh3 {[%emt 0:01:48]} h6 {[%emt 0:01:53]} 24. c4 {[%emt 0:00:02]} Rd7 {[%emt 0:01:11] White now steadily converts the win.} 25. Rf3 {[%emt 0:01:09]} Ngh4 {[%emt 0:01:04]} 26. Rd3 {[%emt 0:01:56]} Ne7 {[%emt 0:03:22]} (26... b6 $142) 27. Bc3 {[%emt 0:01:53][%cal Bd2c3,Bc3e5,Be5g3,Bg3f2][%mdl 32]} Nhf5 {[%emt 0:00:02]} 28. Be5+ {[%emt 0:00:35]} Kb6 {[%emt 0:00:55]} 29. g4 $36 {[%emt 0:01:57][%mdl 2048] White has strong initiative.} Nh4 {[%emt 0:00:02]} 30. Bg3 {[%emt 0:00:01]} ({Resist} 30. Bxg7 Rg8 31. Bd4+ (31. Bxh6 Nef5 $14) 31... Ka6 $16) 30... Nhg6 {[%emt 0:00:57]} 31. f4 {[%emt 0:00:13] White is more active.} Nf8 {[%emt 0:00:16] [#]} (31... Ka6 $16 32. f5 Nf8) 32. Rde3 $1 $18 {[%emt 0:00:42]} Ng8 {[%emt 0:00:14]} 33. cxd5 {[%emt 0:00:22]} Rxd5 {[%emt 0:00:08]} 34. Rb3+ {[%emt 0:00:37]} Ka6 {[%emt 0:00:02] [#]} 35. Bf2 $1 {[%emt 0:00:06]} Nd7 {[%emt 0:00:04] Prevents Rb6+.} 36. Nc4 {[%emt 0:00:45] Nb6 would now be deadly.} b5 $2 {[%emt 0:00:36]} (36... Rd8 37. Nb6 Ngf6) 37. axb5+ {[%emt 0:00:08]} Rxb5 {[%emt 0:00:02] Black is weak on the dark squares} 38. Rd3 {[%emt 0:00:05]} (38. Ra3 $142 Rf8 39. Rea1) 38... Ndf6 $2 {[%emt 0:00:16]} (38... Ngf6 {keeps fighting.} 39. Ra1 Rb4) 39. Re6 {[%emt 0:00:23]} Nxg4 $2 {[%emt 0:00:13] Weighted Error Value: White=0.10 (very precise) /Black=0.28 (precise) Mistake: 	White=1 	Black=6 Inaccurate: 	White=1 	Black=2 OK: 	White=15 	Black=11 Best: 	White=4 	Black=3 Strong: 	White=2 	---} (39... Re8 40. Rxc6+ Kb7) 1-0

[Event "GCT Superbet Rapid Poland 2025"]
[Site "Warsaw"]
[Date "2025.04.28"]
[Round "7.1"]
[White "Deac, Bogdan-Daniel"]
[Black "Gavrilescu, David"]
[Result "1/2-1/2"]
[ECO "E04"]
[WhiteElo "2668"]
[BlackElo "2554"]
[Annotator "TA"]
[PlyCount "69"]
[EventDate "2025.??.??"]
[EventType "rapid"]
[TimeControl "1500+10"]

{[%evp 22,69,16,0,37,36,41,9,4,0,0,0,10,-5,-3,-6,-8,-6,-7,-1,-8,-8,0,0,0,0,0,0,0,0,0,0,0,-10,-7,-15,-3,-6,-5,-7,0,0,0,0,0,0,0,0,0,0]} 1. Nf3 {[%emt 0:00:03]} d5 {[%emt 0:00:07]} 2. g3 {[%emt 0:00:02]} c5 {[%emt 0:00:15]} 3. Bg2 {[%emt 0:00:07]} Nc6 {[%emt 0:00:14]} 4. d4 {[%emt 0:00:30]} Nf6 {[%emt 0:00:15]} 5. O-O {[%emt 0:00:03]} e6 {[%emt 0:00:11]} 6. c4 {[%emt 0:02:01]} dxc4 {[%emt 0:00:08]} 7. Qa4 {[%emt 0:00:11]} Bd7 {[%emt 0:00:24]} 8. Qxc4 {[%emt 0:00:08]} cxd4 {[%emt 0:00:26]} 9. Nxd4 {[%emt 0:00:17]} Rc8 {[%emt 0:00:08]} 10. Nc3 {[%emt 0:00:36]} Nxd4 {[%emt 0:00:13]} 11. Qxd4 {[%emt 0:00:04]} Bc5 {[%emt 0:00:08]} 12. Qh4 {[%emt 0:00:06]} Bc6 {[%emt 0:00:13] E04: Open Catalan: 5 Nf3.} 13. Bxc6+ {[%emt 0:08:01]} Rxc6 {[%emt 0:00:11]} 14. Bg5 {[%emt 0:00:20] [#] and Rfd1 would now be decisive} ({RR} 14. Rd1 Qa5 15. Bg5 Be7 16. Rac1 h6 17. Ne4 Rxc1 18. Rxc1 Nxe4 19. Bxe7 Qd2 20. Bg5 Nxg5 21. Rc8+ Ke7 22. Rxh8 Qxe2 23. Qb4+ Kf6 24. Qf4+ Kg6 25. Kg2 e5 26. Qe3 Qxb2 27. h4 Ne6 28. Qe4+ Kf6 {Carlsen,M (2835)-Duda,J (2732) Zagreb CRO 2023 1-0 (32)}) ({RR} 14. Rd1 Qa5 15. Bg5 Be7 16. Ne4 Qe5 17. Nxf6+ Bxf6 18. Bxf6 Qxf6 19. Qxf6 gxf6 20. Rac1 Rxc1 21. Rxc1 Kd7 22. Kg2 Rg8 23. Rc4 Rg5 24. Rh4 h5 25. Rf4 Ke7 26. Kf3 Rc5 27. Ke3 a5 28. Kd3 b5 {Kobo,O (2539)-Samunenkov,I (2523) Czech Republic CZE 2025 ½-½ (43)}) 14... Qd4 {[%emt 0:00:26] The position is equal.} 15. Rad1 {[%emt 0:03:55]} Qxh4 {[%emt 0:01:17]} 16. Bxh4 {[%emt 0:00:04]} Be7 $146 {[%emt 0:01:33]} (16... Rg8 17. Bxf6 gxf6 18. Rd3 Ke7 19. Rfd1 Rd6 20. Ne4 Rxd3 21. Rxd3 Bb6 22. Kg2 Rc8 {0-1 Siembab,B (2206)-Tofil,B (2138) Perla Baltyku op-A 3rd 2007 (9)}) ({RR} 16... Rg8 17. Bxf6 gxf6 18. Rd3 Ke7 19. Rfd1 Rd6 20. Ne4 Rxd3 21. Rxd3 Bb6 22. Kg2 Rc8 23. Rb3 f5 24. Nc3 Rc7 25. Kf3 Rd7 26. Na4 Rd6 27. Nxb6 Rxb6 28. Rxb6 axb6 29. Ke3 e5 30. Kd3 b5 31. Kc3 {Siembab,B (2206)-Tofil,B (2138) Mielno 2007 0-1 (40)}) 17. Bg5 {[%emt 0:03:43]} h6 {[%emt 0:01:56]} 18. Bf4 {[%emt 0:03:12]} O-O {[%emt 0:02:12] The position is symmetric and equal} 19. Rd3 {[%emt 0:00:02]} Rd8 {[%emt 0:01:42]} 20. Rxd8+ {[%emt 0:01:19]} Bxd8 {[%emt 0:00:02]} 21. Rc1 {[%emt 0:00:06]} Bc7 {[%emt 0:01:08]} 22. Bxc7 {[%emt 0:01:23]} Rxc7 $11 {[%emt 0:00:02][%mdl 4096] Endgame KRN-KRN} 23. Rd1 {[%emt 0:00:01]} Kf8 {[%emt 0:01:57]} 24. f3 {[%emt 0:00:08]} Ke7 {[%emt 0:00:10]} 25. Kf2 {[%emt 0:00:01]} a6 {[%emt 0:00:17]} 26. Rd4 {[%emt 0:00:55]} Nd7 {[%emt 0:01:01]} 27. Ke1 {[%emt 0:00:50]} Ne5 {[%emt 0:00:29]} 28. Rd1 {[%emt 0:00:50]} Nc4 {[%emt 0:01:01]} 29. Rc1 {[%emt 0:00:17]} Rc6 {[%emt 0:00:40]} (29... Nxb2 30. Nd5+ exd5 31. Rxc7+ Ke6 32. Rxb7 $18) 30. b3 {[%emt 0:00:03]} Na3 {[%emt 0:01:21]} 31. Kd2 {[%emt 0:00:10]} Rd6+ {[%emt 0:00:05]} 32. Ke1 {[%emt 0:00:02]} Rc6 {[%emt 0:00:01]} 33. Kd2 {[%emt 0:00:01]} Rd6+ {[%emt 0:00:02]} 34. Ke1 {[%emt 0:00:03]} Rc6 {[%emt 0:00:02]} 35. Kd2 {[%emt 0:00:04] Weighted Error Value: White=0.03 (flawless) /Black=0.04 (flawless) Inaccurate: 	White=1 	--- OK: 	White=9 	Black=9} 1/2-1/2

[Event "GCT Superbet Rapid Poland 2025"]
[Site "Warsaw"]
[Date "2025.04.28"]
[Round "7.2"]
[White "Praggnanandhaa R"]
[Black "Fedoseev, Vladimir"]
[Result "1/2-1/2"]
[ECO "D06"]
[WhiteElo "2758"]
[BlackElo "2739"]
[Annotator "TA"]
[PlyCount "79"]
[EventDate "2025.??.??"]
[EventType "rapid"]
[TimeControl "1500+10"]

{[%evp 16,79,53,29,61,47,61,49,59,39,31,40,41,26,23,0,0,0,10,10,13,0,33,24,36,27,5,11,7,0,4,0,0,-8,-16,-11,-12,-18,0,-12,-18,-17,-8,-26,-15,-14,-11,-20,-2,-1,-4,-4,-4,-4,0,-4,0,0,0,0,0,0,0,0,0,0]} 1. d4 {[%emt 0:00:02]} d5 {[%emt 0:00:06]} 2. Nf3 {[%emt 0:00:02]} c5 {[%emt 0:01:00]} 3. c4 {[%emt 0:00:47]} cxd4 {[%emt 0:00:14]} 4. cxd5 {[%emt 0:01:47]} Nf6 {[%emt 0:00:51]} 5. Qxd4 {[%emt 0:01:20]} Qxd5 {[%emt 0:00:06]} 6. Nc3 {[%emt 0:00:37]} Qxd4 {[%emt 0:00:04]} 7. Nxd4 {[%emt 0:00:02]} a6 {[%emt 0:02:24]} 8. g3 {[%emt 0:00:11]} e5 {[%emt 0:00:33]} 9. Nb3 {[%emt 0:00:02]} Bd7 {[%emt 0:01:18] D06: Queen's Gambit: Symmetrical and Baltic Defences.} 10. Bg2 {[%emt 0:01:02]} Bc6 {[%emt 0:00:01]} 11. O-O {[%emt 0:01:00]} Bb4 {[%emt 0:00:01] White is slightly better.} 12. Bd2 {[%emt 0:01:02][%cal Oc3a4]} ({RR} 12. Bg5 Bxc3 13. Bxf6 gxf6 14. bxc3 Bxg2 15. Kxg2 Nd7 16. Rfd1 Ke7 17. Na5 Nc5 18. Rd5 Rac8 19. Rb1 Rhd8 20. c4 Rc7 21. Rb6 Rdc8 22. Nb3 Ne4 23. Na5 Nc5 24. Nb3 Na4 25. Rb4 Nc3 26. Rd2 f5 {Vitiugov,N (2734)-Mamedyarov,S (2753) Khanty-Mansiysk 2013 ½-½ (46)}) 12... Bxg2 {[%emt 0:00:08]} 13. Kxg2 {[%emt 0:00:02]} Nc6 {[%emt 0:02:11]} 14. Rfd1 $146 {[%emt 0:00:07]} ({RR} 14. Rac1 O-O 15. a3 Bxc3 16. Bxc3 Ne4 17. Rfd1 Rfd8 18. Be1 Rxd1 19. Rxd1 Rd8 20. Rc1 f6 21. f3 Nd6 22. Bf2 Rc8 23. Bc5 Nb5 24. Bb6 Ne7 25. Bc5 Nc6 26. e3 Rd8 27. a4 Nc7 28. Rc2 Ne6 {Kojima,S (2368)-Juhasz,A (2185) Kecskemet 2013 ½-½ (33)}) ({RR} 14. Rac1 h6 15. a3 Bxc3 16. Bxc3 Ke7 17. Nc5 Rab8 18. Rfd1 a5 19. f4 exf4 20. gxf4 Rhd8 21. Rxd8 Kxd8 22. Rd1+ Kc7 23. Bxf6 gxf6 24. Rd7+ Kb6 25. Ne4 Re8 26. Nc3 Kc5 27. Rxb7 Re7 28. Rxe7 Nxe7 {Lalith,B (2533)-Bernadskiy,V (2546) Figueira da Foz POR 2023 1-0 (46)}) ({RR} 14. Rac1 O-O-O 15. a3 Bxc3 16. Bxc3 Rd5 17. Na5 Nxa5 18. Bxa5+ Kd7 19. b4 Ke6 20. Bb6 Rd6 21. Be3 Rhd8 22. a4 Ng4 23. Ba7 f5 24. Rc7 R8d7 25. Rc8 Rd8 26. Rfc1 Nf6 27. R1c7 Rxc8 28. Rxc8 Rd2 {Krasenkow,M (2616)-Landa,K (2624) Vlissingen 2015 ½-½ (36)}) 14... O-O-O {[%emt 0:01:24]} 15. a3 {[%emt 0:02:17]} Bxc3 {[%emt 0:01:05]} 16. Bxc3 {[%emt 0:00:02]} Rxd1 $146 {[%emt 0:00:47]} (16... Ne4 17. Be1 b6 18. f3 {½-½ Wojtkiewicz,A (2570)-Johansen,D (2495) Sonnevanck 3rd 1993 (1)}) 17. Rxd1 {[%emt 0:00:01]} Ne4 {[%emt 0:00:33]} 18. Be1 {[%emt 0:00:06]} Rd8 {[%emt 0:00:06]} 19. Rc1 {[%emt 0:00:06]} Kb8 {[%emt 0:00:39]} 20. g4 {[%emt 0:00:11]} Rd5 {[%emt 0:00:13]} 21. f3 {[%emt 0:03:35]} Rb5 {[%emt 0:01:00]} 22. Na1 {[%emt 0:00:01]} Ng5 {[%emt 0:00:58]} 23. b4 {[%emt 0:00:30]} Nd4 {[%emt 0:00:38]} 24. Bd2 {[%emt 0:02:55]} Nxe2 {[%emt 0:01:54]} 25. Bxg5 {[%emt 0:01:15]} Nxc1 {[%emt 0:00:02]} 26. Bxc1 {[%emt 0:00:02]} Rd5 {[%emt 0:00:10]} 27. Kf2 {[%emt 0:01:33]} Rd1 {[%emt 0:00:15][%mdl 1024] Black has compensation.} 28. Nb3 {[%emt 0:00:02]} Kc7 {[%emt 0:01:17]} 29. Ke3 {[%emt 0:02:46]} Rh1 {[%emt 0:02:36]} 30. Ke4 {[%emt 0:00:01] The position is equal.} f6 {[%emt 0:00:01]} 31. f4 {[%emt 0:00:02]} Rxh2 {[%emt 0:02:01] With the idea ...Re2+.} 32. fxe5 {[%emt 0:00:01]} fxe5 {[%emt 0:00:01]} ({Much worse is} 32... Re2+ 33. Kf3 Rc2 (33... Rxe5 $2 {too greedy.} 34. Bf4 $18) 34. Bf4 Rc3+ 35. Ke4 $14) 33. Kxe5 {[%emt 0:00:28]} h5 {[%emt 0:01:15]} 34. gxh5 {[%emt 0:00:23]} Rxh5+ {[%emt 0:00:02]} 35. Ke4 {[%emt 0:00:26]} b6 {[%emt 0:00:21]} 36. Nd4 {[%emt 0:00:36]} Kd7 {[%emt 0:00:09]} 37. Nf3 {[%emt 0:00:12]} Kc6 {[%emt 0:00:08]} 38. Nd4+ {[%emt 0:00:35]} Kd7 {[%emt 0:00:04]} 39. Nf3 {[%emt 0:00:10]} Kc6 {[%emt 0:00:01]} 40. Nd4+ {[%emt 0:01:28] Weighted Error Value: White=0.05 (flawless) /Black=0.05 (flawless) Inaccurate: 	--- 	Black=1 OK: 	White=8 	Black=18 Best: 	White=3 	---} 1/2-1/2

[Event "GCT Superbet Rapid Poland 2025"]
[Site "Warsaw"]
[Date "2025.04.28"]
[Round "7.3"]
[White "Vachier-Lagrave, Maxime"]
[Black "Firouzja, Alireza"]
[Result "1/2-1/2"]
[ECO "C95"]
[WhiteElo "2722"]
[BlackElo "2757"]
[Annotator "TA"]
[PlyCount "105"]
[EventDate "2025.??.??"]
[EventType "rapid"]
[TimeControl "1500+10"]

{[%evp 30,105,27,0,20,0,17,11,19,10,7,0,11,1,14,0,0,0,0,4,28,14,22,21,17,0,0,-13,-11,-23,0,-28,-16,-21,-13,-57,-51,-51,-36,-57,-56,-61,-66,-54,-41,-48,-42,-65,-46,-43,-42,-95,-30,-39,-2,-56,0,0,0,0,0,0,0,0,0,0,0,0,0,0,0,0,0,0,0,0,0,0]} 1. e4 {[%emt 0:00:01]} e5 {[%emt 0:00:01]} 2. Nf3 {[%emt 0:00:02]} Nc6 {[%emt 0:00:01]} 3. Bb5 {[%emt 0:00:02]} a6 {[%emt 0:00:00]} 4. Ba4 {[%emt 0:00:01]} Nf6 {[%emt 0:00:02]} 5. O-O {[%emt 0:00:02]} Be7 {[%emt 0:00:02]} 6. Re1 {[%emt 0:00:02]} b5 {[%emt 0:00:02]} 7. Bb3 {[%emt 0:00:01]} d6 {[%emt 0:00:07]} 8. c3 {[%emt 0:00:02]} O-O {[%emt 0:00:05]} 9. h3 {[%emt 0:00:01]} Nb8 {[%emt 0:00:04]} 10. d4 {[%emt 0:00:08]} Nbd7 {[%emt 0:00:03]} 11. Nbd2 {[%emt 0:00:01]} Bb7 {[%emt 0:00:02]} 12. Bc2 {[%emt 0:00:03]} Re8 {[%emt 0:00:05]} 13. Nf1 {[%emt 0:00:02]} Bf8 {[%emt 0:00:04]} 14. Ng3 {[%emt 0:00:02]} g6 {[%emt 0:00:04]} 15. a4 {[%emt 0:00:51]} Bg7 {[%emt 0:00:05]} 16. d5 {[%emt 0:00:18]} Qb8 {[%emt 0:00:08] C95: Closed Ruy Lopez: Breyer Variation with 10 d4.} 17. b4 {[%emt 0:01:15]} c6 {[%emt 0:00:04]} 18. dxc6 {[%emt 0:00:04]} Bxc6 {[%emt 0:00:02]} 19. axb5 {[%emt 0:01:03]} ({RR} 19. Bb3 h6 20. Bd2 Qb7 21. Qc2 d5 22. exd5 Nxd5 23. Ne4 Bf8 24. Rad1 f5 25. Bxh6 bxa4 26. Bxd5+ Bxd5 27. Bxf8 fxe4 28. Ng5 Nxf8 29. c4 Rac8 30. Rxd5 Qxd5 31. Nxe4 Rxc4 32. Nf6+ Kf7 33. Nxd5 Rxc2 {Kujawski,A (2111)-Gemy,J (2311) chess.com INT 2024 0-1 (33)}) 19... Bxb5 $146 {[%emt 0:00:10]} ({RR} 19... axb5 20. Rxa8 Bxa8 21. Bb3 Nb6 22. Bg5 h6 23. Bxf6 Bxf6 24. h4 h5 25. Qd3 Bc6 26. Ng5 Bxg5 27. hxg5 Qc7 28. Nf1 Rd8 29. Ne3 Qb7 30. Rd1 Bxe4 31. Qxb5 Bc6 32. Qd3 Be4 33. Qb5 Bc6 34. Qd3 {Zhornik,N (2280)-Tarlev,K (2363) Kharkov 2004 1-0 (39)}) ({RR} 19... axb5 20. Rxa8 Bxa8 21. Bb3 Nb6 22. Qd3 Rc8 23. Bg5 Nc4 24. Nd2 Qc7 25. Bxc4 bxc4 26. Qe2 Nd7 27. Ra1 d5 28. exd5 Bxd5 29. Ra5 Qc6 30. Nge4 f6 31. Bh4 f5 {½-½ (31) Vachier Lagrave,M (2742)-Amin,B (2691) Chartres FRA 2023}) ({RR} 19... axb5 20. Rxa8 Bxa8 21. Bb3 Nb6 22. Bg5 h6 23. Bxf6 Bxf6 24. Qd3 Bc6 25. Nh2 Bg7 26. Rd1 Rd8 27. Ng4 h5 28. Ne3 h4 29. Ne2 Qa8 30. Nd5 Nxd5 31. Bxd5 Bf8 32. c4 Bxd5 33. cxd5 Qa4 34. Qd2 {Tuncer,T (1996)-Can,M (2034) Kocaeli 2014 0-1 (51)}) 20. Bb3 {[%emt 0:01:09]} Rc8 $146 {[%emt 0:00:27]} (20... Nb6 21. Bg5 Qc7 22. Rc1 Nc4 23. Nd2 h6 24. Nxc4 Bxc4 25. Be3 d5 26. Bc5 Bxb3 27. Qxb3 {½-½ Soobik,M (2306)-Kraujunas,V (2139) Baltic Club-chT email 2005}) 21. Ng5 {[%emt 0:02:18]} Bc4 {[%emt 0:00:04]} 22. h4 {[%emt 0:00:51]} h6 {[%emt 0:03:50]} 23. Nf3 {[%emt 0:00:02][%cal Oh4h5]} Bxb3 {[%emt 0:00:01]} 24. Qxb3 {[%emt 0:00:02][%cal Oh4h5]} Nc5 {[%emt 0:00:04]} (24... a5 {seems wilder.} 25. h5 g5 26. Nf5 a4) 25. Qd1 {[%emt 0:01:52]} Ne6 {[%emt 0:00:03]} 26. Ra3 {[%emt 0:00:27][%cal Oh4h5]} Nf4 {[%emt 0:00:26]} 27. Bxf4 {[%emt 0:01:40]} exf4 {[%emt 0:00:03]} 28. Nf1 {[%emt 0:00:01]} Ng4 {[%emt 0:01:27]} 29. Qd3 {[%emt 0:00:37]} Ra7 {[%emt 0:06:30]} 30. N1h2 {[%emt 0:02:05]} h5 {[%emt 0:00:28]} 31. Nxg4 {[%emt 0:00:01]} hxg4 {[%emt 0:00:02]} 32. Nh2 {[%emt 0:00:01] [#]} g3 {[%emt 0:01:21]} 33. fxg3 {[%emt 0:00:03]} fxg3 {[%emt 0:03:36]} 34. Qxg3 {[%emt 0:00:11][%cal Oh4h5]} Rac7 {[%emt 0:00:36]} 35. Rxa6 {[%emt 0:03:11]} Bxc3 {[%emt 0:00:42]} 36. Rf1 {[%emt 0:00:41][%cal Be1f1,Bf1f2,Bf2a2][%mdl 32]} Qxb4 {[%emt 0:02:12]} 37. Nf3 {[%emt 0:03:23]} Qc5+ {[%emt 0:01:53] Strong Square Black (c3)} 38. Rf2 {[%emt 0:00:45]} Qe3 {[%emt 0:01:47]} 39. Kh2 {[%emt 0:01:39]} Rc6 {[%emt 0:00:22]} 40. Ra4 {[%emt 0:01:06]} (40. Rxc6 $15 Rxc6 41. h5) 40... Bg7 {[%emt 0:00:33]} ({Black should play} 40... Re8 $17) 41. Rfa2 {[%emt 0:00:35]} Rc3 {[%emt 0:01:26][%cal Og7e5] ...Be5! would now be deadly.} 42. Qg5 {[%emt 0:01:24] [#]} (42. Qxd6 $11 Re8 43. Ra8 Qxe4 44. R2a4 Qxa8 45. Rxa8 Rxa8 46. Ng5) 42... Be5+ {[%emt 0:00:58]} 43. Nxe5 $11 {[%emt 0:00:01] The position is equal.} Qxg5 {[%emt 0:00:06]} 44. hxg5 {[%emt 0:00:02]} dxe5 {[%emt 0:00:01][%mdl 4096] Endgame KRR-KRR} 45. Ra5 {[%emt 0:00:13]} R3c5 {[%emt 0:00:14]} 46. Rxc5 {[%emt 0:00:15]} Rxc5 {[%emt 0:00:01] KR-KR} 47. Ra8+ {[%emt 0:00:01]} Kg7 {[%emt 0:00:01]} 48. Kg3 {[%emt 0:00:15]} Rc3+ {[%emt 0:00:08]} 49. Kf2 {[%emt 0:00:01]} Rc2+ {[%emt 0:00:01]} 50. Kf3 {[%emt 0:00:01]} Rc3+ {[%emt 0:00:01]} 51. Kf2 {[%emt 0:00:00]} Rc2+ {[%emt 0:00:01]} 52. Kf3 {[%emt 0:00:01]} Rc3+ {[%emt 0:00:00]} 53. Kf2 {[%emt 0:00:00] Weighted Error Value: White=0.11 (very precise) /Black=0.09 (flawless) Mistake: 	White=2 	Black=2 Inaccurate: 	White=2 	Black=1 OK: 	White=16 	Black=13 Best: 	White=1 	Black=2 Brilliant: 	--- 	Black=1} 1/2-1/2